[Event "Early-Titled-Tuesday-Blitz-May-14-2024"]
[Site "Chess.com"]
[Date "2024.05.14"]
[Round "8"]
[White "DonkyDonkyDonkey"]
[Black "DenLaz"]
[Result "1/2-1/2"]
[WhiteElo "2921"]
[BlackElo "3115"]
[TimeControl "180+1"]
[EndTime "9:31:39 PDT"]
[Termination "Game drawn - insufficient material"]

1. e4 {[%clk 0:03:00.9]} 1... c5 {[%clk 0:02:59.5]} 2. Nf3 {[%clk 0:03:00.7]}
2... e6 {[%clk 0:03:00.2]} 3. c3 {[%clk 0:02:56.9]} 3... d5 {[%clk 0:03:00]} 4.
e5 {[%clk 0:02:57.4]} 4... d4 {[%clk 0:03:00]} 5. d3 {[%clk 0:02:57.9]} 5... Nc6
{[%clk 0:02:58.2]} 6. g3 {[%clk 0:02:58.3]} 6... dxc3 {[%clk 0:02:54.6]} 7. bxc3
{[%clk 0:02:55.6]} 7... Nge7 {[%clk 0:02:55.1]} 8. Bg2 {[%clk 0:02:55.6]} 8...
b6 {[%clk 0:02:55.7]} 9. O-O {[%clk 0:02:55.3]} 9... Bb7 {[%clk 0:02:55.6]} 10.
Na3 {[%clk 0:02:47.7]} 10... Nd5 {[%clk 0:02:54.5]} 11. Bd2 {[%clk 0:02:45.2]}
11... Be7 {[%clk 0:02:54.7]} 12. h4 {[%clk 0:02:41.9]} 12... O-O {[%clk
0:02:54.1]} 13. Qe2 {[%clk 0:02:40.9]} 13... h6 {[%clk 0:02:53.4]} 14. Rad1
{[%clk 0:02:38.4]} 14... Qd7 {[%clk 0:02:52.5]} 15. Nc4 {[%clk 0:02:36.2]} 15...
b5 {[%clk 0:02:47]} 16. Ne3 {[%clk 0:02:36.2]} 16... Nxe3 {[%clk 0:02:45.6]} 17.
Bxe3 {[%clk 0:02:35.4]} 17... b4 {[%clk 0:02:45.4]} 18. cxb4 {[%clk 0:02:29.7]}
18... Nxb4 {[%clk 0:02:39.9]} 19. Rfe1 {[%clk 0:02:00.9]} 19... Rfd8 {[%clk
0:02:34.3]} 20. d4 {[%clk 0:01:59.7]} 20... c4 {[%clk 0:02:16.8]} 21. Qxc4
{[%clk 0:01:50.7]} 21... Bd5 {[%clk 0:02:15.6]} 22. Qe2 {[%clk 0:01:45.2]} 22...
Nxa2 {[%clk 0:02:12.4]} 23. Ra1 {[%clk 0:01:41.7]} 23... Nc3 {[%clk 0:02:10.2]}
24. Qd2 {[%clk 0:01:38.9]} 24... Bb4 {[%clk 0:02:07.5]} 25. Bxh6 {[%clk
0:01:36.2]} 25... gxh6 {[%clk 0:01:58.2]} 26. Qxh6 {[%clk 0:01:37.1]} 26... Bf8
{[%clk 0:01:58.4]} 27. Qg5+ {[%clk 0:01:35.1]} 27... Bg7 {[%clk 0:01:52.1]} 28.
h5 {[%clk 0:01:35.5]} 28... Kh7 {[%clk 0:01:50.3]} 29. Qd2 {[%clk 0:01:35.4]}
29... Rac8 {[%clk 0:01:07.9]} 30. Ng5+ {[%clk 0:01:23.3]} 30... Kh8 {[%clk
0:01:03.7]} 31. Qd3 {[%clk 0:01:05.7]} 31... f5 {[%clk 0:01:02.6]} 32. exf6
{[%clk 0:01:05.4]} 32... Bxf6 {[%clk 0:01:02.1]} 33. Bxd5 {[%clk 0:01:02.1]}
33... Nxd5 {[%clk 0:00:56.1]} 34. Nxe6 {[%clk 0:00:57.4]} 34... Re8 {[%clk
0:00:55.5]} 35. Qf5 {[%clk 0:00:47.8]} 35... Rc6 {[%clk 0:00:44.6]} 36. Ra5
{[%clk 0:00:38.6]} 36... Rcxe6 {[%clk 0:00:39.1]} 37. Rxe6 {[%clk 0:00:37]}
37... Rxe6 {[%clk 0:00:39.7]} 38. Qxd5 {[%clk 0:00:27.2]} 38... Qxd5 {[%clk
0:00:33.3]} 39. Rxd5 {[%clk 0:00:28.1]} 39... Re4 {[%clk 0:00:33.3]} 40. Rd6
{[%clk 0:00:20.4]} 40... Bxd4 {[%clk 0:00:32]} 41. Kg2 {[%clk 0:00:17.8]} 41...
Bb6 {[%clk 0:00:32.1]} 42. f4 {[%clk 0:00:16.1]} 42... Rb4 {[%clk 0:00:13.3]}
43. Kf3 {[%clk 0:00:11.7]} 43... a5 {[%clk 0:00:13.9]} 44. g4 {[%clk 0:00:10.7]}
44... a4 {[%clk 0:00:14.5]} 45. Rd2 {[%clk 0:00:06.2]} 45... a3 {[%clk
0:00:14.7]} 46. Ra2 {[%clk 0:00:06.9]} 46... Rb3+ {[%clk 0:00:12.3]} 47. Ke4
{[%clk 0:00:07]} 47... Bc5 {[%clk 0:00:12.9]} 48. Rc2 {[%clk 0:00:06.5]} 48...
Rb4+ {[%clk 0:00:12.4]} 49. Kf5 {[%clk 0:00:06.8]} 49... Ra4 {[%clk 0:00:12.4]}
50. Rxc5 {[%clk 0:00:02.1]} 50... a2 {[%clk 0:00:12.6]} 51. Rc8+ {[%clk
0:00:02.1]} 51... Kg7 {[%clk 0:00:12.6]} 52. Rc7+ {[%clk 0:00:03]} 52... Kf8
{[%clk 0:00:12.8]} 53. Rc8+ {[%clk 0:00:03.1]} 53... Ke7 {[%clk 0:00:13.2]} 54.
Rc7+ {[%clk 0:00:03.5]} 54... Kd6 {[%clk 0:00:13.3]} 55. Rc1 {[%clk 0:00:04.4]}
55... a1=Q {[%clk 0:00:11.9]} 56. Rxa1 {[%clk 0:00:05.1]} 56... Rxa1 {[%clk
0:00:12.8]} 57. Kf6 {[%clk 0:00:05.7]} 57... Ra4 {[%clk 0:00:08.9]} 58. h6
{[%clk 0:00:05.7]} 58... Rxf4+ {[%clk 0:00:08.7]} 59. Kg5 {[%clk 0:00:06.3]}
59... Rf1 {[%clk 0:00:04]} 60. h7 {[%clk 0:00:04.1]} 60... Rh1 {[%clk
0:00:04.4]} 61. Kg6 {[%clk 0:00:04.6]} 61... Ke5 {[%clk 0:00:05.1]} 62. Kg7
{[%clk 0:00:04.9]} 62... Kf4 {[%clk 0:00:05.5]} 63. h8=Q {[%clk 0:00:05.5]}
63... Rxh8 {[%clk 0:00:06.3]} 64. Kxh8 {[%clk 0:00:06.4]} 64... Kxg4 {[%clk
0:00:07.1]} 1/2-1/2

[Event "Early-Titled-Tuesday-Blitz-May-14-2024"]
[Site "Chess.com"]
[Date "2024.05.14"]
[Round "8"]
[White "rpragchess"]
[Black "Hikaru"]
[Result "0-1"]
[WhiteElo "3109"]
[BlackElo "3228"]
[TimeControl "180+1"]
[EndTime "9:31:40 PDT"]
[Termination "Hikaru won by checkmate"]

1. Nf3 {[%clk 0:03:00.5]} 1... Nf6 {[%clk 0:02:58.9]} 2. g3 {[%clk 0:03:00.2]}
2... d5 {[%clk 0:02:55]} 3. Bg2 {[%clk 0:03:00.3]} 3... Nbd7 {[%clk 0:02:55.8]}
4. d4 {[%clk 0:02:57.4]} 4... Nb6 {[%clk 0:02:55.9]} 5. Nc3 {[%clk 0:02:54.8]}
5... Bf5 {[%clk 0:02:56]} 6. Nh4 {[%clk 0:02:54.3]} 6... Bg4 {[%clk 0:02:55.7]}
7. a4 {[%clk 0:02:50.1]} 7... e6 {[%clk 0:02:46.3]} 8. h3 {[%clk 0:02:39.9]}
8... Bh5 {[%clk 0:02:43.7]} 9. a5 {[%clk 0:02:37.4]} 9... Nc4 {[%clk 0:02:35.7]}
10. a6 {[%clk 0:02:25.2]} 10... b6 {[%clk 0:02:35.6]} 11. g4 {[%clk 0:02:11.3]}
11... Bg6 {[%clk 0:02:35.3]} 12. Nxg6 {[%clk 0:02:02.7]} 12... hxg6 {[%clk
0:02:34.7]} 13. g5 {[%clk 0:02:02.1]} 13... Ng8 {[%clk 0:02:29.7]} 14. e4 {[%clk
0:02:00.9]} 14... Bb4 {[%clk 0:02:28.7]} 15. Qd3 {[%clk 0:02:00]} 15... c6
{[%clk 0:02:21.4]} 16. O-O {[%clk 0:01:57]} 16... Ne7 {[%clk 0:02:15.4]} 17. Ne2
{[%clk 0:01:55.7]} 17... Bd6 {[%clk 0:02:05.6]} 18. b3 {[%clk 0:01:49.9]} 18...
Na5 {[%clk 0:02:05.1]} 19. Bd2 {[%clk 0:01:44.3]} 19... Bc7 {[%clk 0:01:54.9]}
20. c4 {[%clk 0:01:36.8]} 20... O-O {[%clk 0:01:41.1]} 21. Rfc1 {[%clk
0:01:23.2]} 21... Rb8 {[%clk 0:01:36.4]} 22. Rc2 {[%clk 0:01:18]} 22... dxc4
{[%clk 0:01:30.2]} 23. bxc4 {[%clk 0:01:11.8]} 23... c5 {[%clk 0:01:30.8]} 24.
d5 {[%clk 0:00:55.2]} 24... Nac6 {[%clk 0:01:29.9]} 25. Rd1 {[%clk 0:00:54.6]}
25... e5 {[%clk 0:01:12.9]} 26. Rb2 {[%clk 0:00:49.3]} 26... Nd4 {[%clk
0:01:10]} 27. h4 {[%clk 0:00:45.4]} 27... Bd6 {[%clk 0:01:03.7]} 28. Bh3 {[%clk
0:00:39]} 28... Qe8 {[%clk 0:00:59.5]} 29. Nc3 {[%clk 0:00:27.2]} 29... f5
{[%clk 0:00:55.6]} 30. gxf6 {[%clk 0:00:27.1]} 30... Rxf6 {[%clk 0:00:55.7]} 31.
Bg4 {[%clk 0:00:25.9]} 31... Kh8 {[%clk 0:00:44.7]} 32. Bg5 {[%clk 0:00:25.9]}
32... Rf8 {[%clk 0:00:45.1]} 33. Kg2 {[%clk 0:00:26.3]} 33... Ng8 {[%clk
0:00:44.7]} 34. Rh1 {[%clk 0:00:21.4]} 34... Nf6 {[%clk 0:00:44.3]} 35. Qh3
{[%clk 0:00:15.3]} 35... Nh5 {[%clk 0:00:42.6]} 36. Ne2 {[%clk 0:00:10.3]} 36...
Qf7 {[%clk 0:00:32.8]} 37. Nxd4 {[%clk 0:00:05.8]} 37... exd4 {[%clk 0:00:32.2]}
38. Be6 {[%clk 0:00:05.1]} 38... Nf4+ {[%clk 0:00:31.3]} 39. Bxf4 {[%clk
0:00:05.3]} 39... Qxf4 {[%clk 0:00:32.2]} 40. h5 {[%clk 0:00:04.3]} 40... g5
{[%clk 0:00:26.7]} 41. Bf5 {[%clk 0:00:04.6]} 41... Rbe8 {[%clk 0:00:22.9]} 42.
f3 {[%clk 0:00:02.7]} 42... Rf6 {[%clk 0:00:19.2]} 43. Bg6 {[%clk 0:00:03.2]}
43... Ref8 {[%clk 0:00:15.9]} 44. Bf5 {[%clk 0:00:03.5]} 44... Rh6 {[%clk
0:00:13]} 45. Qg4 {[%clk 0:00:03.1]} 45... Qe3 {[%clk 0:00:13.5]} 46. Rd1 {[%clk
0:00:02.8]} 46... d3 {[%clk 0:00:13.8]} 47. Rbd2 {[%clk 0:00:02.8]} 47... Bf4
{[%clk 0:00:13.3]} 48. Rf2 {[%clk 0:00:01.9]} 48... Qd4 {[%clk 0:00:12.7]} 49.
Bg6 {[%clk 0:00:01.9]} 49... d2 {[%clk 0:00:11.9]} 50. Re2 {[%clk 0:00:01.7]}
50... Qxc4 {[%clk 0:00:11.6]} 51. Rf2 {[%clk 0:00:01.9]} 51... Qd4 {[%clk
0:00:11.8]} 52. Rff1 {[%clk 0:00:01.4]} 52... c4 {[%clk 0:00:12.1]} 53. Qd7
{[%clk 0:00:01.1]} 53... c3 {[%clk 0:00:12.7]} 54. Qe7 {[%clk 0:00:01.8]} 54...
Qf6 {[%clk 0:00:12.7]} 55. Qa3 {[%clk 0:00:01.2]} 55... c2 {[%clk 0:00:11.6]}
56. e5 {[%clk 0:00:01.8]} 56... cxd1=Q {[%clk 0:00:07.8]} 57. exf6 {[%clk
0:00:01.6]} 57... Qxf1+ {[%clk 0:00:08.3]} 58. Kxf1 {[%clk 0:00:01.7]} 58...
d1=Q+ {[%clk 0:00:08.8]} 59. Kg2 {[%clk 0:00:02.4]} 59... Qe2+ {[%clk
0:00:09.3]} 60. Kg1 {[%clk 0:00:03]} 60... Be3+ {[%clk 0:00:09.9]} 61. Kh1
{[%clk 0:00:03.3]} 61... Qf1+ {[%clk 0:00:10.2]} 62. Kh2 {[%clk 0:00:03.9]}
62... Bf4# {[%clk 0:00:11.1]} 0-1

[Event "Early-Titled-Tuesday-Blitz-May-14-2024"]
[Site "Chess.com"]
[Date "2024.05.14"]
[Round "8"]
[White "js20000"]
[Black "FaustinoOro"]
[Result "1-0"]
[WhiteElo "2775"]
[BlackElo "2934"]
[TimeControl "180+1"]
[EndTime "9:31:44 PDT"]
[Termination "js20000 won by resignation"]

1. b3 {[%clk 0:03:00.9]} 1... Nf6 {[%clk 0:02:58.2]} 2. Bb2 {[%clk 0:03:01.2]}
2... d5 {[%clk 0:02:58.5]} 3. g3 {[%clk 0:03:00.7]} 3... Bf5 {[%clk 0:02:55.5]}
4. Nf3 {[%clk 0:02:59.5]} 4... e6 {[%clk 0:02:55.7]} 5. Bg2 {[%clk 0:02:57.7]}
5... h6 {[%clk 0:02:55.6]} 6. c4 {[%clk 0:02:56.1]} 6... Be7 {[%clk 0:02:55.2]}
7. O-O {[%clk 0:02:54.1]} 7... O-O {[%clk 0:02:55.2]} 8. d3 {[%clk 0:02:52.5]}
8... Nbd7 {[%clk 0:02:54.7]} 9. Nbd2 {[%clk 0:02:48.9]} 9... c6 {[%clk
0:02:54.2]} 10. Re1 {[%clk 0:02:46.8]} 10... Bh7 {[%clk 0:02:53.8]} 11. Qc2
{[%clk 0:02:46]} 11... a5 {[%clk 0:02:51.9]} 12. a3 {[%clk 0:02:45.3]} 12... b5
{[%clk 0:02:43.1]} 13. Nd4 {[%clk 0:02:32.4]} 13... Qb6 {[%clk 0:02:41.5]} 14.
cxb5 {[%clk 0:02:30.4]} 14... cxb5 {[%clk 0:02:40.5]} 15. Qc6 {[%clk 0:02:29.8]}
15... Qxc6 {[%clk 0:02:40]} 16. Nxc6 {[%clk 0:02:29.9]} 16... Bc5 {[%clk
0:02:32.1]} 17. b4 {[%clk 0:02:24.1]} 17... axb4 {[%clk 0:02:25.5]} 18. axb4
{[%clk 0:02:23.7]} 18... Bb6 {[%clk 0:02:23.3]} 19. Nb3 {[%clk 0:02:19.6]} 19...
Rfe8 {[%clk 0:02:00.3]} 20. Nbd4 {[%clk 0:02:06.9]} 20... Rac8 {[%clk
0:01:58.5]} 21. Rec1 {[%clk 0:02:02.1]} 21... Bxd4 {[%clk 0:01:14.6]} 22. Bxd4
{[%clk 0:02:00]} 22... Kf8 {[%clk 0:01:07.6]} 23. Ra7 {[%clk 0:01:40]} 23... e5
{[%clk 0:01:02.8]} 24. Bc5+ {[%clk 0:01:40]} 24... Nxc5 {[%clk 0:00:59.5]} 25.
Rxc5 {[%clk 0:01:40.9]} 25... e4 {[%clk 0:00:56.3]} 26. d4 {[%clk 0:01:32.3]}
26... e3 {[%clk 0:00:51.7]} 27. f3 {[%clk 0:01:12.6]} 27... Bf5 {[%clk
0:00:51.8]} 28. Ne5 {[%clk 0:01:01.2]} 28... Be6 {[%clk 0:00:51.5]} 29. Nd3
{[%clk 0:00:53.5]} 29... Ra8 {[%clk 0:00:41.6]} 30. Rcc7 {[%clk 0:00:51.6]}
30... Rxa7 {[%clk 0:00:32.5]} 31. Rxa7 {[%clk 0:00:52.5]} 31... Nd7 {[%clk
0:00:30.5]} 32. Ra3 {[%clk 0:00:32.9]} 32... Nb6 {[%clk 0:00:29.3]} 33. Nc5
{[%clk 0:00:31.8]} 33... Nc4 {[%clk 0:00:29]} 34. Ra7 {[%clk 0:00:31.9]} 34...
Bf5 {[%clk 0:00:24.5]} 35. f4 {[%clk 0:00:30.8]} 35... Rd8 {[%clk 0:00:22.8]}
36. Bf3 {[%clk 0:00:28.9]} 36... g5 {[%clk 0:00:22.5]} 37. g4 {[%clk 0:00:27.9]}
37... Bc2 {[%clk 0:00:20.6]} 38. f5 {[%clk 0:00:27.5]} 38... Nd2 {[%clk
0:00:20.7]} 39. Kg2 {[%clk 0:00:27.2]} 39... Rd6 {[%clk 0:00:18.5]} 40. Nd7+
{[%clk 0:00:18.8]} 40... Ke8 {[%clk 0:00:18.3]} 41. Ne5 {[%clk 0:00:11.3]} 41...
f6 {[%clk 0:00:18]} 42. Ng6 {[%clk 0:00:11.8]} 42... Nb3 {[%clk 0:00:17]} 43.
Ra8+ {[%clk 0:00:11.7]} 43... Kd7 {[%clk 0:00:16.2]} 44. Nf8+ {[%clk 0:00:12.1]}
44... Kc7 {[%clk 0:00:14.5]} 45. Ne6+ {[%clk 0:00:12.4]} 45... Kb7 {[%clk
0:00:14.7]} 46. Rf8 {[%clk 0:00:11.4]} 46... Kb6 {[%clk 0:00:12.6]} 47. Rxf6
{[%clk 0:00:11.3]} 47... Nxd4 {[%clk 0:00:08.4]} 48. Rxh6 {[%clk 0:00:11.4]}
48... Bb1 {[%clk 0:00:05.6]} 49. Rg6 {[%clk 0:00:05.5]} 49... Nc2 {[%clk
0:00:02.4]} 50. Nc5 {[%clk 0:00:04.7]} 50... Rxg6 {[%clk 0:00:01.4]} 51. fxg6
{[%clk 0:00:05]} 51... Ne1+ {[%clk 0:00:02.3]} 52. Kg3 {[%clk 0:00:04.2]} 52...
Nxf3 {[%clk 0:00:03]} 53. g7 {[%clk 0:00:04.3]} 53... Bh7 {[%clk 0:00:02.5]} 54.
Kxf3 {[%clk 0:00:04.7]} 54... d4 {[%clk 0:00:03.2]} 55. Ne6 {[%clk 0:00:04]}
55... Kc6 {[%clk 0:00:03.1]} 56. Nxd4+ {[%clk 0:00:04.3]} 56... Kd5 {[%clk
0:00:03.9]} 57. Kxe3 {[%clk 0:00:04.9]} 57... Kc4 {[%clk 0:00:04.2]} 58. Ne6
{[%clk 0:00:04]} 58... Kxb4 {[%clk 0:00:04.3]} 59. Nxg5 {[%clk 0:00:04.3]} 59...
Bg8 {[%clk 0:00:05.1]} 60. Kd2 {[%clk 0:00:04.8]} 60... Ka3 {[%clk 0:00:05.2]}
61. Ne4 {[%clk 0:00:04.7]} 61... b4 {[%clk 0:00:05.5]} 62. h4 {[%clk 0:00:04]}
62... b3 {[%clk 0:00:05.5]} 63. g5 {[%clk 0:00:03.8]} 63... b2 {[%clk
0:00:03.3]} 64. Nc3 {[%clk 0:00:04.4]} 64... Kb3 {[%clk 0:00:03]} 65. h5 {[%clk
0:00:04.8]} 65... Bh7 {[%clk 0:00:03.4]} 66. g6 {[%clk 0:00:05]} 66... Bg8
{[%clk 0:00:04.3]} 67. h6 {[%clk 0:00:05.5]} 67... Be6 {[%clk 0:00:04.8]} 68. h7
{[%clk 0:00:05.8]} 1-0

[Event "Early-Titled-Tuesday-Blitz-May-14-2024"]
[Site "Chess.com"]
[Date "2024.05.14"]
[Round "8"]
[White "stepanosinovsky"]
[Black "Savagelittlemole"]
[Result "0-1"]
[WhiteElo "2320"]
[BlackElo "2478"]
[TimeControl "180+1"]
[EndTime "9:31:46 PDT"]
[Termination "Savagelittlemole won on time"]

1. Nf3 {[%clk 0:02:57.5]} 1... g6 {[%clk 0:03:00.4]} 2. g3 {[%clk 0:02:57.6]}
2... Bg7 {[%clk 0:03:01.1]} 3. Bg2 {[%clk 0:02:58.3]} 3... e5 {[%clk 0:03:01.7]}
4. O-O {[%clk 0:02:58.5]} 4... e4 {[%clk 0:03:01.7]} 5. Ne1 {[%clk 0:02:55.7]}
5... d5 {[%clk 0:03:01.8]} 6. d3 {[%clk 0:02:55.8]} 6... f5 {[%clk 0:02:59.9]}
7. c4 {[%clk 0:02:43.4]} 7... c6 {[%clk 0:02:58.7]} 8. cxd5 {[%clk 0:02:38]}
8... cxd5 {[%clk 0:02:59.6]} 9. dxe4 {[%clk 0:02:34.4]} 9... dxe4 {[%clk
0:03:00.5]} 10. Qxd8+ {[%clk 0:02:08.4]} 10... Kxd8 {[%clk 0:03:01.4]} 11. f3
{[%clk 0:02:07.8]} 11... Nf6 {[%clk 0:02:57.3]} 12. Nc3 {[%clk 0:01:50]} 12...
exf3 {[%clk 0:02:54.2]} 13. Nxf3 {[%clk 0:01:50.9]} 13... Nc6 {[%clk 0:02:50.7]}
14. Ng5 {[%clk 0:01:43.1]} 14... Kc7 {[%clk 0:02:38.9]} 15. Bf4+ {[%clk
0:01:38.4]} 15... Kb6 {[%clk 0:02:38.8]} 16. b4 {[%clk 0:01:13.6]} 16... a6
{[%clk 0:02:20.8]} 17. Rab1 {[%clk 0:00:53.8]} 17... Nh5 {[%clk 0:02:13.7]} 18.
b5 {[%clk 0:00:33.4]} 18... axb5 {[%clk 0:02:00.7]} 19. Nxb5 {[%clk 0:00:08.8]}
19... Nxf4 {[%clk 0:01:59.4]} 20. gxf4 {[%clk 0:00:07.9]} 20... Ra5 {[%clk
0:01:52.6]} 21. Nd6+ {[%clk 0:00:05.7]} 21... Kc7 {[%clk 0:01:48.4]} 22. Ngf7
{[%clk 0:00:05.4]} 22... Rf8 {[%clk 0:01:41.5]} 23. Rfc1 {[%clk 0:00:05.4]}
23... Bd4+ {[%clk 0:01:20]} 24. Kf1 {[%clk 0:00:04.3]} 24... Be3 {[%clk
0:01:15]} 25. Rc2 {[%clk 0:00:04.1]} 25... Bc5 {[%clk 0:01:14.6]} 26. Nc4 {[%clk
0:00:03.7]} 26... Ra6 {[%clk 0:01:10]} 27. Nce5 {[%clk 0:00:03.2]} 27... Rb6
{[%clk 0:01:00.2]} 28. Rbc1 {[%clk 0:00:02.7]} 28... Be3 {[%clk 0:00:54.7]} 29.
Nxc6 {[%clk 0:00:02.1]} 29... Bxc1 {[%clk 0:00:54]} 30. Nce5+ {[%clk 0:00:01.6]}
30... Kb8 {[%clk 0:00:44.6]} 31. Rxc1 {[%clk 0:00:01.8]} 31... Be6 {[%clk
0:00:42.6]} 32. Ng5 {[%clk 0:00:02]} 32... Rd8 {[%clk 0:00:39]} 33. Nxe6 {[%clk
0:00:00.8]} 33... Rxe6 {[%clk 0:00:39.9]} 34. Rb1 {[%clk 0:00:01.1]} 34... Rd2
{[%clk 0:00:29]} 35. Rxb7+ {[%clk 0:00:01.3]} 35... Kc8 {[%clk 0:00:29.3]} 36.
Rb3 {[%clk 0:00:01.3]} 36... Rxa2 {[%clk 0:00:26.2]} 37. Rc3+ {[%clk 0:00:01.8]}
37... Kd8 {[%clk 0:00:16.6]} 38. h4 {[%clk 0:00:01.9]} 38... Ra4 {[%clk
0:00:14.5]} 39. e3 {[%clk 0:00:01.3]} 39... Rb6 {[%clk 0:00:13]} 40. Rd3+ {[%clk
0:00:01.2]} 40... Kc8 {[%clk 0:00:10.1]} 41. Kf2 {[%clk 0:00:01.8]} 41... Rb2+
{[%clk 0:00:09.8]} 42. Kg3 {[%clk 0:00:02.3]} 42... Raa2 {[%clk 0:00:10.3]} 43.
Bf3 {[%clk 0:00:02.9]} 43... Kc7 {[%clk 0:00:07.9]} 44. Rc3+ {[%clk 0:00:03.3]}
44... Kd8 {[%clk 0:00:06.6]} 45. Rd3+ {[%clk 0:00:03.2]} 45... Ke8 {[%clk
0:00:06.7]} 46. Rc3 {[%clk 0:00:02.8]} 46... Rc2 {[%clk 0:00:06.7]} 47. Rd3
{[%clk 0:00:02.2]} 47... Rd2 {[%clk 0:00:07]} 48. Rb3 {[%clk 0:00:02.1]} 48...
Rab2 {[%clk 0:00:07.4]} 49. Bc6+ {[%clk 0:00:02.3]} 49... Ke7 {[%clk 0:00:07.2]}
50. Rxb2 {[%clk 0:00:02.1]} 50... Rxb2 {[%clk 0:00:07.3]} 51. Bd5 {[%clk
0:00:02.6]} 51... Re2 {[%clk 0:00:06.8]} 52. Kf3 {[%clk 0:00:02.1]} 52... Rh2
{[%clk 0:00:06.6]} 53. Kg3 {[%clk 0:00:01.9]} 53... Re2 {[%clk 0:00:06.2]} 54.
Bg8 {[%clk 0:00:01.6]} 54... Rxe3+ {[%clk 0:00:05.9]} 55. Kf2 {[%clk 0:00:02]}
55... Rh3 {[%clk 0:00:06.4]} 56. Bxh7 {[%clk 0:00:01.5]} 56... Kf6 {[%clk
0:00:05.6]} 57. Bxg6 {[%clk 0:00:00.6]} 57... Rxh4 {[%clk 0:00:05.8]} 58. Kg3
{[%clk 0:00:01.2]} 58... Rh1 {[%clk 0:00:05.7]} 59. Be8 {[%clk 0:00:01.3]} 59...
Rg1+ {[%clk 0:00:05.6]} 60. Kf2 {[%clk 0:00:01.5]} 60... Rc1 {[%clk 0:00:05.6]}
61. Bc6 {[%clk 0:00:00.9]} 61... Rc2+ {[%clk 0:00:05.7]} 62. Kg3 {[%clk
0:00:00.4]} 62... Rc3+ {[%clk 0:00:06.3]} 63. Kf2 {[%clk 0:00:00.5]} 63... Ra3
{[%clk 0:00:05.9]} 64. Bf3 {[%clk 0:00:00.1]} 64... Ke6 {[%clk 0:00:05.4]} 0-1

[Event "Early-Titled-Tuesday-Blitz-May-14-2024"]
[Site "Chess.com"]
[Date "2024.05.14"]
[Round "8"]
[White "patzer-reloaded"]
[Black "stamatolog13"]
[Result "0-1"]
[WhiteElo "2399"]
[BlackElo "2572"]
[TimeControl "180+1"]
[EndTime "9:31:54 PDT"]
[Termination "stamatolog13 won on time"]

1. d3 {[%clk 0:03:00.9]} 1... d5 {[%clk 0:02:58.6]} 2. Nf3 {[%clk 0:03:01.3]}
2... Nf6 {[%clk 0:02:55.1]} 3. g3 {[%clk 0:03:01.9]} 3... c6 {[%clk 0:02:52.7]}
4. Bg2 {[%clk 0:03:02.5]} 4... Bg4 {[%clk 0:02:47.8]} 5. O-O {[%clk 0:03:03.4]}
5... Nbd7 {[%clk 0:02:48.3]} 6. c4 {[%clk 0:03:02.8]} 6... e6 {[%clk 0:02:48.7]}
7. cxd5 {[%clk 0:03:02.8]} 7... cxd5 {[%clk 0:02:47.6]} 8. Qa4 {[%clk
0:02:57.9]} 8... a6 {[%clk 0:02:42.3]} 9. Bg5 {[%clk 0:02:53.4]} 9... b5 {[%clk
0:02:42.4]} 10. Qxg4 {[%clk 0:02:41]} 10... Nxg4 {[%clk 0:02:40.8]} 11. Bxd8
{[%clk 0:02:41.9]} 11... Rxd8 {[%clk 0:02:40]} 12. a4 {[%clk 0:02:40.1]} 12...
b4 {[%clk 0:02:39.6]} 13. Nbd2 {[%clk 0:02:21.1]} 13... Bd6 {[%clk 0:02:33.7]}
14. Nb3 {[%clk 0:02:20.5]} 14... Ke7 {[%clk 0:02:33]} 15. Rac1 {[%clk
0:02:16.7]} 15... Rc8 {[%clk 0:02:27]} 16. Nfd4 {[%clk 0:02:16]} 16... Nb8
{[%clk 0:02:25.4]} 17. e4 {[%clk 0:01:54]} 17... dxe4 {[%clk 0:02:23.7]} 18.
Bxe4 {[%clk 0:01:53.3]} 18... Nf6 {[%clk 0:02:21.6]} 19. Bf3 {[%clk 0:01:51.5]}
19... h5 {[%clk 0:02:17.4]} 20. Rfe1 {[%clk 0:01:45.5]} 20... Kd7 {[%clk
0:02:16.8]} 21. Bb7 {[%clk 0:01:25.7]} 21... Rxc1 {[%clk 0:02:15.2]} 22. Rxc1
{[%clk 0:01:26.6]} 22... g6 {[%clk 0:02:12.4]} 23. Nc6 {[%clk 0:01:20.9]} 23...
Nxc6 {[%clk 0:02:10.7]} 24. Bxc6+ {[%clk 0:01:06.8]} 24... Ke7 {[%clk
0:02:10.4]} 25. Bb7 {[%clk 0:01:06.4]} 25... h4 {[%clk 0:02:05]} 26. Bxa6 {[%clk
0:01:04.8]} 26... hxg3 {[%clk 0:02:05.4]} 27. hxg3 {[%clk 0:01:04.4]} 27... Rd8
{[%clk 0:01:57.1]} 28. a5 {[%clk 0:00:57.7]} 28... Be5 {[%clk 0:01:55.5]} 29.
Rc2 {[%clk 0:00:54.3]} 29... Nd5 {[%clk 0:01:52.2]} 30. Bb7 {[%clk 0:00:49.7]}
30... Bb8 {[%clk 0:01:45.8]} 31. a6 {[%clk 0:00:45.4]} 31... Nb6 {[%clk
0:01:40.8]} 32. Na5 {[%clk 0:00:43.9]} 32... Kd7 {[%clk 0:01:29.9]} 33. Nc6
{[%clk 0:00:38.4]} 33... Rh8 {[%clk 0:01:23.6]} 34. Nxb4 {[%clk 0:00:34.2]}
34... Bd6 {[%clk 0:01:13.2]} 35. Nc6 {[%clk 0:00:31.6]} 35... Bb8 {[%clk
0:00:57]} 36. b4 {[%clk 0:00:27.6]} 36... Nd5 {[%clk 0:00:54.2]} 37. b5 {[%clk
0:00:26.2]} 37... Bd6 {[%clk 0:00:47.8]} 38. a7 {[%clk 0:00:21.8]} 38... Nb6
{[%clk 0:00:48]} 39. d4 {[%clk 0:00:20]} 39... Rh5 {[%clk 0:00:43.1]} 40. a8=Q
{[%clk 0:00:16.1]} 40... Nxa8 {[%clk 0:00:42.5]} 41. Bxa8 {[%clk 0:00:17]} 41...
Rxb5 {[%clk 0:00:42.6]} 42. Ne5+ {[%clk 0:00:17.7]} 42... Ke7 {[%clk 0:00:40.7]}
43. Nf3 {[%clk 0:00:14.1]} 43... g5 {[%clk 0:00:39.5]} 44. Be4 {[%clk
0:00:13.9]} 44... g4 {[%clk 0:00:39.3]} 45. Ne5 {[%clk 0:00:14]} 45... Bxe5
{[%clk 0:00:39]} 46. dxe5 {[%clk 0:00:14.9]} 46... Rxe5 {[%clk 0:00:39.6]} 47.
Re2 {[%clk 0:00:14.4]} 47... f5 {[%clk 0:00:39.2]} 48. Bd3 {[%clk 0:00:14.6]}
48... Rc5 {[%clk 0:00:37.4]} 49. Kh2 {[%clk 0:00:12.8]} 49... Kf6 {[%clk
0:00:37.9]} 50. Kg2 {[%clk 0:00:12.8]} 50... e5 {[%clk 0:00:37.9]} 51. Rc2
{[%clk 0:00:12.4]} 51... Rd5 {[%clk 0:00:35.6]} 52. Rc6+ {[%clk 0:00:13.3]}
52... Kg5 {[%clk 0:00:35.9]} 53. Bc4 {[%clk 0:00:12.4]} 53... Rd2 {[%clk
0:00:33.9]} 54. Bf7 {[%clk 0:00:12.2]} 54... f4 {[%clk 0:00:34.3]} 55. Rg6+
{[%clk 0:00:11.2]} 55... Kf5 {[%clk 0:00:34.8]} 56. Rg8 {[%clk 0:00:08.4]} 56...
f3+ {[%clk 0:00:34.9]} 57. Kg1 {[%clk 0:00:08.7]} 57... Rd1+ {[%clk 0:00:35.3]}
58. Kh2 {[%clk 0:00:08.7]} 58... Rf1 {[%clk 0:00:35]} 59. Bg6+ {[%clk
0:00:06.3]} 59... Kf6 {[%clk 0:00:35]} 60. Be4 {[%clk 0:00:05]} 60... Rxf2+
{[%clk 0:00:35]} 61. Kh1 {[%clk 0:00:05.6]} 61... Rf1+ {[%clk 0:00:27.1]} 62.
Kh2 {[%clk 0:00:05.1]} 62... Re1 {[%clk 0:00:26.4]} 63. Rxg4 {[%clk 0:00:02.2]}
63... f2 {[%clk 0:00:26.6]} 64. Bg2 {[%clk 0:00:02.1]} 64... f1=Q {[%clk
0:00:21.8]} 65. Bxf1 {[%clk 0:00:01.9]} 65... Rxf1 {[%clk 0:00:22.3]} 66. Kg2
{[%clk 0:00:02.8]} 66... Ra1 {[%clk 0:00:21.8]} 67. Rb4 {[%clk 0:00:03.2]} 67...
Kf5 {[%clk 0:00:21.9]} 68. Rb8 {[%clk 0:00:02.6]} 68... e4 {[%clk 0:00:21.8]}
0-1